Workbook

Sheet Males
A1: Age | D1: 0 | E1: =D1+1 -> 1 | F1: =E1+1 -> 2 | G1: 3 | H1: 4 | I1: 5 | J1: 6 | K1: 7 | L1: 8 | M1: 9 | N1: 10 | O1: 11 | P1: 12 | Q1: 13 | R1: 14 | S1: 15 | T1: 16 | U1: 17 | V1: 18 | W1: 19 | X1: 20 | Y1: 21 | Z1: 22 | AA1: 23 | AB1: 24 | AC1: 25 | AD1: 26 | AE1: 27 | AF1: 28 | AG1: 29 | AH1: 30 | AI1: 31 | AJ1: 32 | AK1: 33 | AL1: 34 | AM1: 35 | AN1: 36 | AO1: 37 | AP1: 38 | AQ1: 39 | AR1: 40 | AS1: 41 | AT1: 42 | AU1: 43 | AV1: 44 | AW1: 45 | AX1: 46 | AY1: 47 | AZ1: 48 | BA1: 49 | BB1: 50 | BC1: 51 | BD1: 52 | BE1: 53 | BF1: 54 | BG1: 55 | BH1: 56 | BI1: 57 | BJ1: 58 | BK1: 59 | BL1: 60 | BM1: 61 | BN1: 62 | BO1: 63 | BP1: 64 | BQ1: 65 | BR1: =BQ1+1 -> 66 | BS1: 67 | BT1: 68 | BU1: 69 | BV1: 70 | BW1: 71 | BX1: 72 | BY1: 73 | BZ1: 74 | CA1: 75 | CB1: 76 | CC1: 77 | CD1: 78 | CE1: 79 | CF1: 80 | CG1: 81 | CH1: 82 | CI1: 83 | CJ1: 84
A2: Z Score | D2: =$B$18+D1*$B$19 -> -5 | E2: =$B$18+E1*$B$19 -> -4.6684 | F2: =$B$18+F1*$B$19 -> -4.3368 | G2: =$B$18+G1*$B$19 -> -4.0052 | H2: =$B$18+H1*$B$19 -> -3.6736 | I2: =$B$18+I1*$B$19 -> -3.342 | J2: =$B$18+J1*$B$19 -> -3.0104 | K2: =$B$18+K1*$B$19 -> -2.6788 | L2: =$B$18+L1*$B$19 -> -2.3472 | M2: =$B$18+M1*$B$19 -> -2.0156 | N2: =$B$18+N1*$B$19 -> -1.684 | O2: =$B$18+O1*$B$19 -> -1.3524 | P2: =$B$18+P1*$B$19 -> -1.0208 | Q2: =$B$18+Q1*$B$19 -> -0.6892 | R2: =$B$18+R1*$B$19 -> -0.3576 | S2: =$B$18+S1*$B$19 -> -0.026 | T2: =$B$18+T1*$B$19 -> 0.3056 | U2: =$B$18+U1*$B$19 -> 0.6372 | V2: =$B$18+V1*$B$19 -> 0.9688 | W2: =C18 -> 0.614 | X2: 0.3283 | Y2: 0.1682 | Z2: 0.03135 | AA2: -0.07815 | AB2: -0.18265 | AC2: -0.2461 | AD2: -0.32175 | AE2: -0.3821 | AF2: -0.4167 | AG2: -0.49533 | AH2: -0.51212 | AI2: -0.55195 | AJ2: -0.5658 | AK2: -0.5954 | AL2: -0.6311 | AM2: -0.6444 | AN2: -0.6732 | AO2: -0.6923 | AP2: -0.701 | AQ2: -0.76635 | AR2: =$D$18 -> -0.79 | AS2: =$D$18-(AS1-40)*$D$19 -> -0.8448 | AT2: =$D$18-(AT1-40)*$D$19 -> -0.8996 | AU2: =$D$18-(AU1-40)*$D$19 -> -0.9544 | AV2: =$D$18-(AV1-40)*$D$19 -> -1.0092 | AW2: =$D$18-(AW1-40)*$D$19 -> -1.064 | AX2: =$D$18-(AX1-40)*$D$19 -> -1.1188 | AY2: =$D$18-(AY1-40)*$D$19 -> -1.1736 | AZ2: =$D$18-(AZ1-40)*$D$19 -> -1.2284 | BA2: =$D$18-(BA1-40)*$D$19 -> -1.2832 | BB2: =$D$18-(BB1-40)*$D$19 -> -1.338 | BC2: =$D$18-(BC1-40)*$D$19 -> -1.3928 | BD2: =$D$18-(BD1-40)*$D$19 -> -1.4476 | BE2: =$D$18-(BE1-40)*$D$19 -> -1.5024 | BF2: =$D$18-(BF1-40)*$D$19 -> -1.5572 | BG2: =$D$18-(BG1-40)*$D$19 -> -1.612 | BH2: =$D$18-(BH1-40)*$D$19 -> -1.6668 | BI2: =$D$18-(BI1-40)*$D$19 -> -1.7216 | BJ2: =$D$18-(BJ1-40)*$D$19 -> -1.7764 | BK2: =$D$18-(BK1-40)*$D$19 -> -1.8312 | BL2: =$D$18-(BL1-40)*$D$19 -> -1.886 | BM2: =$D$18-(BM1-40)*$D$19 -> -1.9408 | BN2: =$D$18-(BN1-40)*$D$19 -> -1.9956 | BO2: =$D$18-(BO1-40)*$D$19 -> -2.0504 | BP2: =$D$18-(BP1-40)*$D$19 -> -2.1052 | BQ2: =$D$18-(BQ1-40)*$D$19 -> -2.16 | BR2: =$D$18-(BR1-40)*$D$19 -> -2.2148 | BS2: =$D$18-(BS1-40)*$D$19 -> -2.2696 | BT2: =$D$18-(BT1-40)*$D$19 -> -2.3244 | BU2: =$D$18-(BU1-40)*$D$19 -> -2.3792 | BV2: =$D$18-(BV1-40)*$D$19 -> -2.434 | BW2: =$D$18-(BW1-40)*$D$19 -> -2.4888 | BX2: =$D$18-(BX1-40)*$D$19 -> -2.5436 | BY2: =$D$18-(BY1-40)*$D$19 -> -2.5984 | BZ2: =$D$18-(BZ1-40)*$D$19 -> -2.6532 | CA2: =$D$18-(CA1-40)*$D$19 -> -2.708 | CB2: =$D$18-(CB1-40)*$D$19 -> -2.7628 | CC2: =$D$18-(CC1-40)*$D$19 -> -2.8176 | CD2: =$D$18-(CD1-40)*$D$19 -> -2.8724 | CE2: =$D$18-(CE1-40)*$D$19 -> -2.9272 | CF2: =$D$18-(CF1-40)*$D$19 -> -2.982 | CG2: =$D$18-(CG1-40)*$D$19 -> -3.0368 | CH2: =$D$18-(CH1-40)*$D$19 -> -3.0916 | CI2: =$D$18-(CI1-40)*$D$19 -> -3.1464 | CJ2: =$D$18-(CJ1-40)*$D$19 -> -3.2012
A3: Probability | D3: =NORMSDIST(D2) -> 2.866515719e-07 | E3: =NORMSDIST(E2) -> 1.517772323e-06 | F3: 7.228603003e-06 | G3: 3.098251537e-05 | H3: 0.0001195785096 | I3: 0.0004158853036 | J3: 0.001304519223 | K3: 0.003694325572 | L3: 0.009457549278 | M3: 0.02192090989 | N3: 0.04609083437 | O3: 0.08812369472 | P3: 0.1536746022 | Q3: 0.2453487084 | R3: 0.3603213392 | S3: 0.4896286692 | T3: 0.6200453898 | U3: 0.7380027112 | V3: 0.8336775067 | W3: 0.7303923364 | X3: 0.6286575779 | Y3: 0.5667870295 | Z3: 0.5125047921 | AA3: 0.4688543673 | AB3: 0.4275363249 | AC3: 0.4028024115 | AD3: 0.3738210479 | AE3: 0.3511935959 | AF3: 0.3384489272 | AG3: 0.3101835988 | AH3: 0.304283514 | AI3: 0.2904913052 | AJ3: 0.2857648732 | AK3: 0.2757880628 | AL3: 0.2639875706 | AM3: 0.2596580423 | AN3: 0.2504100306 | AO3: 0.2443744751 | AP3: 0.2416515076 | AQ3: 0.2217340375 | AR3: 0.2147638842 | AS3: 0.1991112573 | AT3: 0.1841665786 | AU3: 0.1699406031 | AV3: 0.1564393633 | AW3: 0.1436643498 | AX3: 0.1316127359 | AY3: 0.1202776406 | AZ3: 0.1096484239 | BA3: 0.099711008 | BB3: 0.09044821839 | BC3: 0.08184013921 | BD3: 0.07386447559 | BE3: 0.06649691818 | BF3: 0.0597115042 | BG3: 0.05348096986 | BH3: 0.04777709013 | BI3: 0.0425710016 | BJ3: 0.03783350556 | BK3: 0.03353534837 | BL3: 0.02964747733 | BM3: 0.02614127051 | BN3: 0.02298873977 | BO3: 0.0201627066 | BP3: 0.01763695114 | BQ3: =NORMSDIST(BQ2) -> 0.01538633478 | BR3: 0.01338689762 | BS3: 0.01161593182 | BT3: 0.01005203279 | BU3: 0.008675129714 | BV3: 0.007466497544 | BW3: 0.00640875237 | BX3: 0.005485832326 | BY3: 0.004682966032 | BZ3: 0.003986630597 | CA3: 0.00338450112 | CB3: 0.002865393502 | CC3: 0.002419202261 | CD3: 0.002036834913 | CE3: 0.001710144281 | CF3: 0.001431859994 | CG3: 0.001195520223 | CH3: 0.0009954045712 | CI3: 0.0008264688738 | CJ3: 0.0006842825187
A4: Projected | D4: =D3/$B$21 -> 2.080804093e-08 | E4: =E3/$B$21 -> 1.101751105e-07 | F4: =F3/$B$21 -> 5.247243759e-07 | G4: =G3/$B$21 -> 2.24902115e-06 | H4: =H3/$B$21 -> 8.680205404e-06 | I4: =I3/$B$21 -> 3.018911902e-05 | J4: =J3/$B$21 -> 9.469506555e-05 | K4: =K3/$B$21 -> 0.0002681711362 | L4: =L3/$B$21 -> 0.000686523612 | M4: =M3/$B$21 -> 0.001591239104 | N4: =N3/$B$21 -> 0.003345734202 | O4: =O3/$B$21 -> 0.006396900023 | P4: =P3/$B$21 -> 0.01115524116 | Q4: =Q3/$B$21 -> 0.01780986559 | R4: =R3/$B$21 -> 0.02615573019 | S4: =S3/$B$21 -> 0.03554215079 | T4: =T3/$B$21 -> 0.04500910204 | U4: =U3/$B$21 -> 0.05357162537 | V4: =V3/$B$21 -> 0.06051665989 | W4: =W3/$B$21 -> 0.05301918818 | X4: =X3/$B$21 -> 0.04563426088 | Y4: =Y3/$B$21 -> 0.04114307706 | Z4: =Z3/$B$21 -> 0.03720272881 | AA4: =AA3/$B$21 -> 0.03403414397 | AB4: =AB3/$B$21 -> 0.03103486679 | AC4: =AC3/$B$21 -> 0.02923943173 | AD4: =AD3/$B$21 -> 0.02713567421 | AE4: =AE3/$B$21 -> 0.02549314721 | AF4: =AF3/$B$21 -> 0.02456801156 | AG4: =AG3/$B$21 -> 0.02251623104 | AH4: =AH3/$B$21 -> 0.02208794381 | AI4: =AI3/$B$21 -> 0.02108676722 | AJ4: =AJ3/$B$21 -> 0.02074367547 | AK4: =AK3/$B$21 -> 0.02001945868 | AL4: =AL3/$B$21 -> 0.01916286081 | AM4: =AM3/$B$21 -> 0.0188485803 | AN4: =AN3/$B$21 -> 0.01817726703 | AO4: =AO3/$B$21 -> 0.01773914598 | AP4: =AP3/$B$21 -> 0.01754148574 | AQ4: =AQ3/$B$21 -> 0.01609567636 | AR4: =AR3/$B$21 -> 0.01558971285 | AS4: =AS3/$B$21 -> 0.01445348848 | AT4: =AT3/$B$21 -> 0.01336865408 | AU4: =AU3/$B$21 -> 0.01233599036 | AV4: =AV3/$B$21 -> 0.0113559352 | AW4: =AW3/$B$21 -> 0.01042859682 | AX4: =AX3/$B$21 -> 0.009553770024 | AY4: =AY3/$B$21 -> 0.008730955329 | AZ4: =AZ3/$B$21 -> 0.007959380368 | BA4: =BA3/$B$21 -> 0.007238023229 | BB4: =BB3/$B$21 -> 0.006565637224 | BC4: =BC3/$B$21 -> 0.005940776656 | BD4: =BD3/$B$21 -> 0.005361823141 | BE4: =BE3/$B$21 -> 0.004827012063 | BF4: =BF3/$B$21 -> 0.004334458783 | BG4: =BG3/$B$21 -> 0.003882184223 | BH4: =BH3/$B$21 -> 0.003468139527 | BI4: =BI3/$B$21 -> 0.003090229501 | BJ4: =BJ3/$B$21 -> 0.002746334608 | BK4: =BK3/$B$21 -> 0.002434331327 | BL4: =BL3/$B$21 -> 0.002152110724 | BM4: =BM3/$B$21 -> 0.00189759513 | BN4: =BN3/$B$21 -> 0.001668752887 | BO4: =BO3/$B$21 -> 0.001463611106 | BP4: =BP3/$B$21 -> 0.001280266488 | BQ4: =BQ3/$B$21 -> 0.001116894221 | BR4: =BR3/$B$21 -> 0.0009717550535 | BS4: =BS3/$B$21 -> 0.0008432006254 | BT4: =BT3/$B$21 -> 0.0007296771767 | BU4: =BU3/$B$21 -> 0.0006297277667 | BV4: =BV3/$B$21 -> 0.0005419931435 | BW4: =BW3/$B$21 -> 0.000465211409 | BX4: =BX3/$B$21 -> 0.0003982166323 | BY4: =BY3/$B$21 -> 0.0003399365587 | BZ4: =BZ3/$B$21 -> 0.0002893895614 | CA4: =CA3/$B$21 -> 0.0002456809756 | CB4: =CB3/$B$21 -> 0.0002079989476 | CC4: =CC3/$B$21 -> 0.0001756099202 | CD4: =CD3/$B$21 -> 0.00014785387 | CE4: =CE3/$B$21 -> 0.0001241393932 | CF4: =CF3/$B$21 -> 0.0001039387336 | CG4: =CG3/$B$21 -> 8.67828269e-05 | CH4: =CH3/$B$21 -> 7.225642939e-05 | CI4: =CI3/$B$21 -> 5.999338515e-05 | CJ4: =CJ3/$B$21 -> 4.967207598e-05
A5: Actual Age-Crime Curve | D5: 0 | E5: 8.877973343e-06 | F5: 3.528650105e-06 | G5: 6.368619785e-06 | H5: 1.751098696e-05 | I5: 4.67036171e-05 | J5: 0.0001416829952 | K5: 0.0004152864657 | L5: 0.0008759642403 | M5: 0.001591856917 | N5: 0.003069457504 | O5: 0.005601072333 | P5: 0.01072677167 | Q5: 0.01860041365 | R5: 0.02760302364 | S5: 0.03600582557 | T5: 0.04434751508 | U5: 0.05234460593 | V5: 0.06042670785 | W5: 0.05301834977 | X5: 0.04563305836 | Y5: 0.04114166754 | Z5: 0.03720213726 | AA5: 0.03403383315 | AB5: 0.03103439562 | AC5: 0.02923805417 | AD5: 0.02713505721 | AE5: 0.02549344944 | AF5: 0.02456680965 | AG5: 0.02251501296 | AH5: 0.02208662497 | AI5: 0.02108619552 | AJ5: 0.02074279609 | AK5: 0.02001883424 | AL5: 0.01916222147 | AM5: 0.01884753904 | AN5: 0.0181776778 | AO5: 0.01773856648 | AP5: 0.01754075754 | AQ5: 0.01609435796 | AR5: 0.0154754418 | AS5: 0.01463146408 | AT5: 0.01397853066 | AU5: 0.01288891761 | AV5: 0.01169515781 | AW5: 0.01087732838 | AX5: 0.00991302593 | AY5: 0.008939275689 | AZ5: 0.008136120329 | BA5: 0.007084600343 | BB5: 0.006462521527 | BC5: 0.005687818324 | BD5: 0.005101996523 | BE5: 0.00452622161 | BF5: 0.003985063964 | BG5: 0.003644557584 | BH5: 0.00319974839 | BI5: 0.002864754373 | BJ5: 0.002630841516 | BK5: 0.002308210755 | BL5: 0.002142897205 | BM5: 0.001929882405 | BN5: 0.001785868713 | BO5: 0.001594768906 | BP5: 0.001425524162 | BQ5: 0.001350441476 | BR5: 0.00121116545 | BS5: 0.001080623938 | BT5: 0.001001500419 | BU5: 0.0009334226934 | BV5: 0.0008564812527 | BW5: 0.0007251633412 | BX5: 0.0007040219588 | BY5: 0.0006266995918 | BZ5: 0.0005994912911 | CA5: 0.0005237178557 | CB5: 0.0004818218193 | CC5: 0.0004331676126 | CD5: 0.0003714829117 | CE5: 0.0003564616166 | CF5: 0.0003426666759 | CG5: 0.0003333417983 | CH5: 0.0002850975102 | CI5: 0.0002641391702 | CJ5: 0.0002679830946
A6: Squared Total | D6: =D5*D5 -> 0 | E6: =E5*E5 -> 7.881841068e-11 | F6: 1.245137156e-11 | G6: 4.055931796e-11 | H6: 3.066346643e-10 | I6: 2.18122785e-09 | J6: 2.007407112e-08 | K6: 1.724628486e-07 | L6: 7.673133503e-07 | M6: 2.534008445e-06 | N6: 9.42156937e-06 | O6: 3.137201128e-05 | P6: 0.0001150636305 | Q6: 0.0003459753878 | R6: 0.000761926914 | S6: 0.001296419475 | T6: 0.001966702094 | U6: 0.00273995777 | V6: 0.003651387022 | W6: 0.002810945412 | X6: 0.002082376015 | Y6: 0.001692636808 | Z6: 0.001383999016 | AA6: 0.001158301799 | AB6: 0.0009631337115 | AC6: 0.0008548638117 | AD6: 0.00073631133 | AE6: 0.0006499159645 | AF6: 0.0006035281363 | AG6: 0.0005069258088 | AH6: 0.0004878190027 | AI6: 0.0004446276417 | AJ6: 0.0004302635895 | AK6: 0.0004007537243 | AL6: 0.0003671907317 | AM6: 0.0003552297279 | AN6: 0.0003304279702 | AO6: 0.0003146567407 | AP6: 0.000307678175 | AQ6: 0.0002590283581 | AR6: 0.0002394892989 | AS6: 0.0002140797411 | AT6: 0.0001953993194 | AU6: 0.0001661241972 | AV6: 0.0001367767163 | AW6: 0.0001183162727 | AX6: 9.826808308e-05 | AY6: 7.991064985e-05 | AZ6: 6.6196454e-05 | BA6: 5.019156202e-05 | BB6: 4.176418448e-05 | BC6: 3.235127728e-05 | BD6: 2.603036852e-05 | BE6: 2.048668207e-05 | BF6: 1.588073479e-05 | BG6: 1.328279999e-05 | BH6: 1.023838976e-05 | BI6: 8.206817619e-06 | BJ6: 6.921327084e-06 | BK6: 5.327836888e-06 | BL6: 4.592008432e-06 | BM6: 3.724446097e-06 | BN6: 3.189327061e-06 | BO6: 2.543287863e-06 | BP6: 2.032119136e-06 | BQ6: =BQ5*BQ5 -> 1.823692179e-06 | BR6: 1.466921747e-06 | BS6: 1.167748096e-06 | BT6: 1.00300309e-06 | BU6: 8.712779245e-07 | BV6: 7.335601363e-07 | BW6: 5.258618714e-07 | BX6: 4.956469185e-07 | BY6: 3.927523784e-07 | BZ6: 3.593898081e-07 | CA6: 2.742803923e-07 | CB6: 2.321522655e-07 | CC6: 1.876341806e-07 | CD6: 1.379995537e-07 | CE6: 1.270648841e-07 | CF6: 1.174204508e-07 | CG6: 1.111167545e-07 | CH6: 8.12805903e-08 | CI6: 6.976950121e-08 | CJ6: 7.181493898e-08
A7: Deviation | D7: =D4-D5 -> 2.080804093e-08 | E7: -8.767798232e-06 | F7: -3.003925729e-06 | G7: -4.119598634e-06 | H7: -8.830781555e-06 | I7: -1.651449808e-05 | J7: -4.698792963e-05 | K7: -0.0001471153295 | L7: -0.0001894406283 | M7: -6.178134778e-07 | N7: 0.000276276698 | O7: 0.0007958276897 | P7: 0.0004284694854 | Q7: -0.0007905480526 | R7: -0.001447293444 | S7: -0.0004636747877 | T7: 0.0006615869619 | U7: 0.001227019448 | V7: 8.995204247e-05 | W7: 8.384132267e-07 | X7: 1.202522147e-06 | Y7: 1.409517417e-06 | Z7: 5.915576832e-07 | AA7: 3.108115758e-07 | AB7: 4.711727876e-07 | AC7: 1.377561359e-06 | AD7: 6.169938388e-07 | AE7: -3.022361628e-07 | AF7: 1.201906256e-06 | AG7: 1.218079076e-06 | AH7: 1.318842185e-06 | AI7: 5.716930331e-07 | AJ7: =AJ4-AJ5 -> 8.793806915e-07 | AK7: 6.244408709e-07 | AL7: 6.393435011e-07 | AM7: 1.041264151e-06 | AN7: -4.107692104e-07 | AO7: 5.795053054e-07 | AP7: 7.282062343e-07 | AQ7: 1.318399178e-06 | AR7: 0.0001142710457 | AS7: -0.0001779755999 | AT7: -0.0006098765797 | AU7: -0.0005529272557 | AV7: -0.0003392226117 | AW7: -0.00044873156 | AX7: -0.0003592559056 | AY7: -0.0002083203608 | AZ7: -0.0001767399609 | BA7: 0.0001534228855 | BB7: 0.0001031156972 | BC7: 0.0002529583324 | BD7: 0.0002598266173 | BE7: 0.0003007904527 | BF7: 0.0003493948195 | BG7: 0.0002376266392 | BH7: 0.0002683911372 | BI7: 0.0002254751274 | BJ7: 0.0001154930914 | BK7: 0.0001261205726 | BL7: 9.213518542e-06 | BM7: -3.228727463e-05 | BN7: -0.0001171158266 | BO7: -0.0001311577995 | BP7: =BP4-BP5 -> -0.000145257674 | BQ7: -0.0002335472548 | BR7: -0.0002394103965 | BS7: -0.000237423313 | BT7: -0.0002718232427 | BU7: -0.0003036949267 | BV7: -0.0003144881093 | BW7: -0.0002599519322 | BX7: -0.0003058053266 | BY7: -0.0002867630332 | BZ7: -0.0003101017297 | CA7: -0.00027803688 | CB7: -0.0002738228717 | CC7: -0.0002575576923 | CD7: -0.0002236290418 | CE7: -0.0002323222234 | CF7: -0.0002387279423 | CG7: -0.0002465589714 | CH7: -0.0002128410808 | CI7: -0.000204145785 | CJ7: -0.0002183110186
A8: Squared Deviations | D8: =D7*D7 -> 4.329745674e-16 | E8: =E7*E7 -> 7.687428584e-11 | F8: 9.023569787e-12 | G8: 1.697109291e-11 | H8: 7.798270287e-11 | I8: 2.727286468e-10 | J8: 2.207865531e-09 | K8: 2.164292018e-08 | L8: 3.588775166e-08 | M8: 3.816934933e-13 | N8: 7.632881388e-08 | O8: 6.333417117e-07 | P8: 1.835860999e-07 | Q8: 6.249662235e-07 | R8: 2.094658312e-06 | S8: 2.149943087e-07 | T8: 4.376973082e-07 | U8: 1.505576726e-06 | V8: 8.091369945e-09 | W8: 7.029367387e-13 | X8: 1.446059515e-12 | Y8: 1.986739349e-12 | Z8: 3.499404926e-13 | AA8: 9.660383563e-14 | AB8: 2.220037958e-13 | AC8: 1.897675297e-12 | AD8: 3.806813971e-13 | AE8: 9.13466981e-14 | AF8: 1.444578648e-12 | AG8: 1.483716634e-12 | AH8: 1.739344708e-12 | AI8: 3.268329241e-13 | AJ8: 7.733104006e-13 | AK8: 3.899264012e-13 | AL8: 4.087601125e-13 | AM8: 1.084231032e-12 | AN8: 1.687313442e-13 | AO8: 3.35826399e-13 | AP8: 5.302843197e-13 | AQ8: 1.738176393e-12 | AR8: 1.305787189e-08 | AS8: 3.167531416e-08 | AT8: 3.719494424e-07 | AU8: 3.057285501e-07 | AV8: 1.150719803e-07 | AW8: 2.013600129e-07 | AX8: 1.290648057e-07 | AY8: 4.339737271e-08 | AZ8: 3.123701379e-08 | BA8: 2.353858181e-08 | BB8: 1.063284702e-08 | BC8: 6.398791791e-08 | BD8: 6.750987107e-08 | BE8: 9.047489645e-08 | BF8: 1.220767399e-07 | BG8: 5.646641966e-08 | BH8: 7.20338025e-08 | BI8: 5.083903309e-08 | BJ8: 1.333865417e-08 | BK8: 1.590639884e-08 | BL8: 8.488892392e-11 | BM8: 1.042468103e-09 | BN8: 1.371611685e-08 | BO8: 1.720236837e-08 | BP8: 2.109979186e-08 | BQ8: =BQ7*BQ7 -> 5.454432024e-08 | BR8: 5.731733794e-08 | BS8: 5.636982957e-08 | BT8: 7.388787527e-08 | BU8: 9.22306085e-08 | BV8: 9.890277089e-08 | BW8: 6.757500706e-08 | BX8: 9.351689776e-08 | BY8: 8.22330372e-08 | BZ8: 9.616308279e-08 | CA8: 7.730450665e-08 | CB8: 7.497896507e-08 | CC8: 6.633596489e-08 | CD8: 5.000994832e-08 | CE8: 5.397361547e-08 | CF8: 5.699103043e-08 | CG8: 6.079132636e-08 | CH8: 4.530132567e-08 | CI8: 4.167550154e-08 | CJ8: 4.765970084e-08
A9: Sum Squared Deviations (Predicted)
A10: Standard Error 0-18
A12: Strength
A13: Mean | B13: 0
A14: S.D. | B14: 1
A15: Mean Chg | B15: 0
A17: Model | B17: 0-18 | C17: 19-45 | D17: 46-98 | E17: Total
A18: Intercept (a) | B18: -5 | C18: 0.614 | D18: -0.79
A19: Slope (b) | B19: 0.3316 | D19: 0.0548
A21: Constant | B21: 13.776
A22: SS(T) | B22: =SUM(D6:V6) -> 0.01092172235 | C22: =SUM(W6:AW6) -> 0.01821079902 | D22: =SUM(AX6:CX6) -> 0.0005013887437 | E22: =SUM(D6:CX6) -> 0.02963391012
A23: SS(E) | B23: =SUM(D8:V8) -> 5.839433373e-06 | C23: =SUM(W8:AW8) -> 1.03886077e-06 | D23: =SUM(AX8:CX8) -> 2.191412641e-06 | E23: =SUM(D8:CX8) -> 9.069706784e-06
A24: S.E. | B24: =SQRT(B23/18) -> 0.0005695726163 | C24: =SQRT(C23/18) -> 0.0002402383966 | D24: =SQRT(D23/18) -> 0.0003489199718 | E24: =SQRT(E23/18) -> 0.0007098398405
A25: R Squared | B25: =(B22-B23)/B22 -> 0.9994653377 | C25: =(C22-C23)/C22 -> 0.9999429536 | D25: =(D22-D23)/D22 -> 0.9956293142 | E25: =(E22-E23)/E22 -> 0.9996939416
A27: Help: Adjust the slopes, intercepts and constants to
A28: obtain the best fit
A29: Note: 19-45 must be fit manually
D35: =SUM(F37:X37) -> 2.393443208e-05 | F35: =0.0001*D1 -> 0 | G35: 0.0001 | H35: 0.0002 | I35: 0.0003 | J35: 0.0004 | K35: 0.0005 | L35: 0.0006 | M35: 0.0007 | N35: 0.0008 | O35: 0.0009 | P35: 0.001 | Q35: =(-0.0043+(O1-10)*0.0083) -> 0.004 | R35: 0.0123 | S35: 0.0206 | T35: 0.0289 | U35: 0.0372 | V35: 0.0455 | W35: 0.0538 | X35: 0.0621
D36: =SQRT(D35/18) -> 0.001153122141 | F36: =F35-D5 -> 0 | G36: 9.112202666e-05 | H36: 0.0001964713499 | I36: 0.0002936313802 | J36: 0.000382489013 | K36: 0.0004532963829 | L36: 0.0004583170048 | M36: 0.0002847135343 | N36: -7.596424028e-05 | O36: -0.0006918569173 | P36: -0.002069457504 | Q36: -0.001601072333 | R36: 0.001573228326 | S36: 0.001999586354 | T36: 0.001296976362 | U36: 0.001194174426 | V36: 0.001152484918 | W36: 0.001455394074 | X36: 0.001673292149
D37: =(B22-D35)/B22 -> 0.9978085478 | F37: =F36*F36 -> 0 | G37: =G36*G36 -> 8.303223742e-09 | H37: 3.860099133e-08 | I37: 8.621938745e-08 | J37: 1.462978451e-07 | K37: 2.054776108e-07 | L37: 2.100544769e-07 | M37: 8.10617966e-08 | N37: 5.770565802e-09 | O37: 4.786659941e-07 | P37: 4.282654361e-06 | Q37: 2.563432617e-06 | R37: 2.475047366e-06 | S37: 3.998345588e-06 | T37: 1.682147684e-06 | U37: 1.426052561e-06 | V37: 1.328221485e-06 | W37: 2.11817191e-06 | X37: 2.799906615e-06

Sheet Females
A1: Age | D1: 0 | E1: =D1+1 -> 1 | F1: =E1+1 -> 2 | G1: 3 | H1: 4 | I1: 5 | J1: 6 | K1: 7 | L1: 8 | M1: 9 | N1: 10 | O1: 11 | P1: 12 | Q1: 13 | R1: 14 | S1: 15 | T1: 16 | U1: 17 | V1: 18 | W1: 19 | X1: 20 | Y1: 21 | Z1: 22 | AA1: 23 | AB1: 24 | AC1: 25 | AD1: 26 | AE1: 27 | AF1: 28 | AG1: 29 | AH1: 30 | AI1: 31 | AJ1: 32 | AK1: 33 | AL1: 34 | AM1: 35 | AN1: 36 | AO1: 37 | AP1: 38 | AQ1: 39 | AR1: 40 | AS1: 41 | AT1: 42 | AU1: 43 | AV1: 44 | AW1: 45 | AX1: 46 | AY1: 47 | AZ1: 48 | BA1: 49 | BB1: 50 | BC1: 51 | BD1: 52 | BE1: 53 | BF1: 54 | BG1: 55 | BH1: 56 | BI1: 57 | BJ1: 58 | BK1: 59 | BL1: 60 | BM1: 61 | BN1: 62 | BO1: 63 | BP1: 64 | BQ1: 65 | BR1: =BQ1+1 -> 66 | BS1: 67 | BT1: 68 | BU1: 69 | BV1: 70 | BW1: 71 | BX1: 72 | BY1: 73 | BZ1: 74 | CA1: 75 | CB1: 76 | CC1: 77 | CD1: 78 | CE1: 79 | CF1: 80 | CG1: 81 | CH1: 82 | CI1: 83 | CJ1: 84 | CK1: 85 | CL1: 86 | CM1: 87 | CN1: 88 | CO1: 89 | CP1: 90 | CQ1: 91 | CR1: 92 | CS1: 93 | CT1: 94 | CU1: 95 | CV1: 96 | CW1: 97 | CX1: 98
A2: Mean | D2: =B15 -> 0 | E2: =D2+$B$17 -> 0 | F2: 0 | G2: 0 | H2: 0 | I2: 0 | J2: 0 | K2: 0 | L2: 0 | M2: 0 | N2: 0 | O2: 0 | P2: 0 | Q2: 0 | R2: 0 | S2: 0 | T2: 0 | U2: 0 | V2: 0 | W2: 0 | X2: 0 | Y2: 0 | Z2: 0 | AA2: 0 | AB2: 0 | AC2: 0 | AD2: 0 | AE2: 0 | AF2: 0 | AG2: 0 | AH2: 0 | AI2: 0 | AJ2: 0 | AK2: =AJ2+$B$17 -> 0 | AL2: 0 | AM2: 0 | AN2: 0 | AO2: 0 | AP2: 0 | AQ2: 0 | AR2: 0 | AS2: 0 | AT2: 0 | AU2: 0 | AV2: 0 | AW2: 0 | AX2: 0 | AY2: 0 | AZ2: 0 | BA2: 0 | BB2: 0 | BC2: 0 | BD2: 0 | BE2: 0 | BF2: 0 | BG2: 0 | BH2: 0 | BI2: 0 | BJ2: 0 | BK2: 0 | BL2: 0 | BM2: 0 | BN2: 0 | BO2: 0 | BP2: 0 | BQ2: =BP2+$B$17 -> 0 | BR2: 0 | BS2: 0 | BT2: 0 | BU2: 0 | BV2: 0 | BW2: 0 | BX2: 0 | BY2: 0 | BZ2: 0 | CA2: 0 | CB2: 0 | CC2: 0 | CD2: 0 | CE2: 0 | CF2: 0 | CG2: 0 | CH2: 0 | CI2: 0 | CJ2: 0 | CK2: 0 | CL2: 0 | CM2: 0 | CN2: 0 | CO2: 0 | CP2: 0 | CQ2: 0 | CR2: 0 | CS2: 0 | CT2: 0 | CU2: 0 | CV2: 0 | CW2: 0 | CX2: 0
A3: S.D. | D3: =$B$16 -> 1 | E3: 1 | F3: 1 | G3: 1 | H3: 1 | I3: 1 | J3: 1 | K3: 1 | L3: 1 | M3: 1 | N3: 1 | O3: 1 | P3: 1 | Q3: 1 | R3: 1 | S3: 1 | T3: 1 | U3: 1 | V3: 1 | W3: 1 | X3: 1 | Y3: 1 | Z3: 1 | AA3: 1 | AB3: 1 | AC3: 1 | AD3: 1 | AE3: 1 | AF3: 1 | AG3: 1 | AH3: 1 | AI3: 1 | AJ3: 1 | AK3: 1 | AL3: 1 | AM3: 1 | AN3: 1 | AO3: 1 | AP3: 1 | AQ3: 1 | AR3: 1 | AS3: 1 | AT3: 1 | AU3: 1 | AV3: 1 | AW3: 1 | AX3: 1 | AY3: 1 | AZ3: 1 | BA3: 1 | BB3: 1 | BC3: 1 | BD3: 1 | BE3: 1 | BF3: 1 | BG3: 1 | BH3: 1 | BI3: 1 | BJ3: 1 | BK3: 1 | BL3: 1 | BM3: 1 | BN3: 1 | BO3: 1 | BP3: 1 | BQ3: 1 | BR3: 1 | BS3: 1 | BT3: 1 | BU3: 1 | BV3: 1 | BW3: 1 | BX3: 1 | BY3: 1 | BZ3: 1 | CA3: 1 | CB3: 1 | CC3: 1 | CD3: 1 | CE3: 1 | CF3: 1 | CG3: 1 | CH3: 1 | CI3: 1 | CJ3: 1 | CK3: 1 | CL3: 1 | CM3: 1 | CN3: 1 | CO3: 1 | CP3: 1 | CQ3: 1 | CR3: 1 | CS3: 1 | CT3: 1 | CU3: 1 | CV3: 1 | CW3: 1 | CX3: 1
A4: Z Score | D4: =$B$20+D1*$B$21 -> -7.2 | E4: =$B$20+E1*$B$21 -> -6.65 | F4: =$B$20+F1*$B$21 -> -6.1 | G4: =$B$20+G1*$B$21 -> -5.55 | H4: =$B$20+H1*$B$21 -> -5 | I4: =$B$20+I1*$B$21 -> -4.45 | J4: =$B$20+J1*$B$21 -> -3.9 | K4: =$B$20+K1*$B$21 -> -3.35 | L4: =$B$20+L1*$B$21 -> -2.8 | M4: =$B$20+M1*$B$21 -> -2.25 | N4: =$B$20+N1*$B$21 -> -1.7 | O4: =$B$20+O1*$B$21 -> -1.15 | P4: =$B$20+P1*$B$21 -> -0.6 | Q4: =$B$20+Q1*$B$21 -> -0.05 | R4: =$B$20+R1*$B$21 -> 0.5 | S4: =$B$20+S1*$B$21 -> 1.05 | T4: =$B$20+T1*$B$21 -> 1.6 | U4: =$B$20+U1*$B$21 -> 2.15 | V4: =$B$20+V1*$B$21 -> 2.7 | W4: 1.254 | X4: 0.7688 | Y4: 0.5371 | Z4: 0.3465 | AA4: 0.2295 | AB4: 0.1331 | AC4: 0.05425 | AD4: -0.00649 | AE4: -0.0606 | AF4: -0.0966 | AG4: -0.134 | AH4: -0.14025 | AI4: -0.149 | AJ4: -0.1229 | AK4: -0.119 | AL4: -0.128 | AM4: -0.1204 | AN4: -0.1557 | AO4: -0.1831 | AP4: -0.2268 | AQ4: -0.274 | AR4: -0.3387 | AS4: -0.412 | AT4: -0.4973 | AU4: -0.5896 | AV4: -0.6935 | AW4: -0.7747 | AX4: =$D$20-(AX1-46)*$D$21 -> -0.9 | AY4: =$D$20-(AY1-46)*$D$21 -> -0.987 | AZ4: =$D$20-(AZ1-46)*$D$21 -> -1.074 | BA4: =$D$20-(BA1-46)*$D$21 -> -1.161 | BB4: =$D$20-(BB1-46)*$D$21 -> -1.248 | BC4: =$D$20-(BC1-46)*$D$21 -> -1.335 | BD4: =$D$20-(BD1-46)*$D$21 -> -1.422 | BE4: =$D$20-(BE1-46)*$D$21 -> -1.509 | BF4: =$D$20-(BF1-46)*$D$21 -> -1.596 | BG4: =$D$20-(BG1-46)*$D$21 -> -1.683 | BH4: =$D$20-(BH1-46)*$D$21 -> -1.77 | BI4: =$D$20-(BI1-46)*$D$21 -> -1.857 | BJ4: =$D$20-(BJ1-46)*$D$21 -> -1.944 | BK4: =$D$20-(BK1-46)*$D$21 -> -2.031 | BL4: =$D$20-(BL1-46)*$D$21 -> -2.118 | BM4: =$D$20-(BM1-46)*$D$21 -> -2.205 | BN4: =$D$20-(BN1-46)*$D$21 -> -2.292 | BO4: =$D$20-(BO1-46)*$D$21 -> -2.379 | BP4: =$D$20-(BP1-46)*$D$21 -> -2.466 | BQ4: =$D$20-(BQ1-46)*$D$21 -> -2.553 | BR4: =$D$20-(BR1-46)*$D$21 -> -2.64 | BS4: =$D$20-(BS1-46)*$D$21 -> -2.727 | BT4: =$D$20-(BT1-46)*$D$21 -> -2.814 | BU4: =$D$20-(BU1-46)*$D$21 -> -2.901 | BV4: =$D$20-(BV1-46)*$D$21 -> -2.988 | BW4: =$D$20-(BW1-46)*$D$21 -> -3.075 | BX4: =$D$20-(BX1-46)*$D$21 -> -3.162 | BY4: =$D$20-(BY1-46)*$D$21 -> -3.249 | BZ4: =$D$20-(BZ1-46)*$D$21 -> -3.336 | CA4: =$D$20-(CA1-46)*$D$21 -> -3.423 | CB4: =$D$20-(CB1-46)*$D$21 -> -3.51 | CC4: =$D$20-(CC1-46)*$D$21 -> -3.597 | CD4: =$D$20-(CD1-46)*$D$21 -> -3.684 | CE4: =$D$20-(CE1-46)*$D$21 -> -3.771 | CF4: =$D$20-(CF1-46)*$D$21 -> -3.858 | CG4: =$D$20-(CG1-46)*$D$21 -> -3.945 | CH4: =$D$20-(CH1-46)*$D$21 -> -4.032 | CI4: =$D$20-(CI1-46)*$D$21 -> -4.119 | CJ4: =$D$20-(CJ1-46)*$D$21 -> -4.206 | CK4: =$D$20-(CK1-46)*$D$21 -> -4.293 | CL4: =$D$20-(CL1-46)*$D$21 -> -4.38 | CM4: =$D$20-(CM1-46)*$D$21 -> -4.467 | CN4: =$D$20-(CN1-46)*$D$21 -> -4.554 | CO4: =$D$20-(CO1-46)*$D$21 -> -4.641 | CP4: =$D$20-(CP1-46)*$D$21 -> -4.728 | CQ4: =$D$20-(CQ1-46)*$D$21 -> -4.815 | CR4: =$D$20-(CR1-46)*$D$21 -> -4.902 | CS4: =$D$20-(CS1-46)*$D$21 -> -4.989 | CT4: =$D$20-(CT1-46)*$D$21 -> -5.076 | CU4: =$D$20-(CU1-46)*$D$21 -> -5.163 | CV4: =$D$20-(CV1-46)*$D$21 -> -5.25 | CW4: =$D$20-(CW1-46)*$D$21 -> -5.337 | CX4: =$D$20-(CX1-46)*$D$21 -> -5.424
A5: Probability | D5: =NORMDIST(D4,D2,D3,TRUE) -> 3.010627981e-13 | E5: 1.465465098e-11 | F5: 5.303423263e-10 | G5: 1.428347989e-08 | H5: 2.866515719e-07 | I5: 4.29351447e-06 | J5: 4.809634402e-05 | K5: 0.0004040578019 | L5: 0.00255513033 | M5: 0.01222447266 | N5: 0.04456546276 | O5: 0.1250719356 | P5: 0.2742531178 | Q5: 0.4800611942 | R5: 0.6914624613 | S5: 0.8531409436 | T5: 0.9452007083 | U5: 0.9842223926 | V5: 0.9965330262 | W5: 0.8950789973 | X5: 0.7789939756 | Y5: 0.7044007296 | Z5: 0.6355165079 | AA5: 0.5907598397 | AB5: 0.5529428524 | AC5: 0.5216320075 | AD5: 0.4974108828 | AE5: 0.4758388868 | AF5: 0.4615220282 | AG5: 0.4467012872 | AH5: 0.444231234 | AI5: 0.4407768165 | AJ5: =NORMDIST(AJ4,AJ2,AJ3,TRUE) -> 0.4510931428 | AK5: 0.4526376779 | AL5: 0.4490744865 | AM5: 0.4520831457 | AN5: 0.4381347486 | AO5: 0.4273597779 | AP5: 0.4102896319 | AQ5: 0.3920423108 | AR5: 0.3674178703 | AS5: 0.3401697116 | AT5: 0.3094887559 | AU5: 0.2777294259 | AV5: 0.2439979129 | AW5: 0.2192584755 | AX5: 0.1840601253 | AY5: 0.1618213193 | AZ5: 0.1414113408 | BA5: 0.1228209497 | BB5: 0.1060155286 | BC5: 0.09093817323 | BD5: 0.07751312547 | BE5: 0.06564939139 | BF5: 0.05524439667 | BG5: 0.04618754571 | BH5: 0.03836357036 | BI5: 0.03165557704 | BJ5: 0.02594772555 | BK5: 0.0211274973 | BL5: 0.01708753384 | BM5: 0.01372704727 | BN5: 0.01095282159 | BO5: 0.008679837983 | BP5: =NORMDIST(BP4,BP2,BP3,TRUE) -> 0.006831566712 | BQ5: 0.005339974812 | BR5: 0.004145301361 | BS5: 0.003195651954 | BT5: 0.002446461418 | BU5: 0.001859869392 | BV5: 0.001404047772 | BW5: 0.001052512768 | BX5: 0.0007834478217 | BY5: 0.0005790573909 | BZ5: 0.0004249658189 | CA5: 0.0003096703866 | CB5: 0.000224053347 | CC5: 0.0001609542418 | CD5: 0.0001148011199 | CE5: 8.129733655e-05 | CF5: 5.715932402e-05 | CG5: 3.98999893e-05 | CH5: 2.765209358e-05 | CI5: 1.902600735e-05 | CJ5: 1.299651159e-05 | CK5: 8.813750318e-06 | CL5: 5.933965446e-06 | CM5: 3.966206492e-06 | CN5: 2.631767785e-06 | CO5: 1.733635627e-06 | CP5: 1.133710926e-06 | CQ5: 7.359994509e-07 | CR5: 4.743291823e-07 | CS5: 3.034632352e-07 | CT5: 1.927316455e-07 | CU5: 1.2151157e-07 | CV5: =NORMDIST(CV4,CV2,CV3,TRUE) -> 7.604960516e-08 | CW5: =NORMDIST(CW4,CW2,CW3,TRUE) -> 4.724851999e-08 | CX5: =NORMDIST(CX4,CX2,CX3,TRUE) -> 2.913994079e-08
A6: Projected | D6: =D5/$B$23 -> 1.551870093e-14 | E6: =E5/$B$23 -> 7.553943803e-13 | F6: =F5/$B$23 -> 2.733723331e-11 | G6: =G5/$B$23 -> 7.362618502e-10 | H6: =H5/$B$23 -> 1.477585422e-08 | I6: =I5/$B$23 -> 2.213151789e-07 | J6: =J5/$B$23 -> 2.479192991e-06 | K6: =K5/$B$23 -> 2.082772175e-05 | L6: =L5/$B$23 -> 0.000131707749 | M6: =M5/$B$23 -> 0.0006301274564 | N6: =N5/$B$23 -> 0.002297188802 | O6: =O5/$B$23 -> 0.006447006992 | P6: =P5/$B$23 -> 0.01413675865 | Q6: =Q5/$B$23 -> 0.02474542238 | R6: =R5/$B$23 -> 0.03564239491 | S6: =S5/$B$23 -> 0.0439763373 | T6: =T5/$B$23 -> 0.04872168599 | U6: =U5/$B$23 -> 0.05073311302 | V6: =V5/$B$23 -> 0.05136768176 | W6: =W5/$B$23 -> 0.04613809264 | X6: =X5/$B$23 -> 0.04015432864 | Y6: =Y5/$B$23 -> 0.03630931596 | Z6: =Z5/$B$23 -> 0.03275858288 | AA6: =AA5/$B$23 -> 0.03045153813 | AB6: =AB5/$B$23 -> 0.02850220889 | AC6: =AC5/$B$23 -> 0.02688824781 | AD6: =AD5/$B$23 -> 0.02563973623 | AE6: =AE5/$B$23 -> 0.02452777767 | AF6: =AF5/$B$23 -> 0.02378979527 | AG6: =AG5/$B$23 -> 0.02302583955 | AH6: =AH5/$B$23 -> 0.02289851722 | AI6: =AI5/$B$23 -> 0.02272045446 | AJ6: =AJ5/$B$23 -> 0.02325222386 | AK6: =AK5/$B$23 -> 0.02333183907 | AL6: =AL5/$B$23 -> 0.02314816941 | AM6: =AM5/$B$23 -> 0.02330325493 | AN6: =AN5/$B$23 -> 0.02258426539 | AO6: =AO5/$B$23 -> 0.02202885453 | AP6: =AP5/$B$23 -> 0.0211489501 | AQ6: =AQ5/$B$23 -> 0.02020836654 | AR6: =AR5/$B$23 -> 0.01893906548 | AS6: =AS5/$B$23 -> 0.01753452122 | AT6: =AT5/$B$23 -> 0.01595302865 | AU6: =AU5/$B$23 -> 0.01431594979 | AV6: =AV5/$B$23 -> 0.01257721201 | AW6: =AW5/$B$23 -> 0.01130198327 | AX6: =AX5/$B$23 -> 0.009487635327 | AY6: =AY5/$B$23 -> 0.008341305119 | AZ6: =AZ5/$B$23 -> 0.00728924437 | BA6: =BA5/$B$23 -> 0.00633097679 | BB6: =BB5/$B$23 -> 0.005464717969 | BC6: =BC5/$B$23 -> 0.004687534702 | BD6: =BD5/$B$23 -> 0.003995521932 | BE6: =BE5/$B$23 -> 0.003383989247 | BF6: =BF5/$B$23 -> 0.002847649313 | BG6: =BG5/$B$23 -> 0.002380801325 | BH6: =BH5/$B$23 -> 0.001977503627 | BI6: =BI5/$B$23 -> 0.001631730775 | BJ6: =BJ5/$B$23 -> 0.001337511626 | BK6: =BK5/$B$23 -> 0.001089046253 | BL6: =BL5/$B$23 -> 0.0008808007135 | BM6: =BM5/$B$23 -> 0.000707579756 | BN6: =BN5/$B$23 -> 0.0005645784324 | BO6: =BO5/$B$23 -> 0.000447414329 | BP6: =BP5/$B$23 -> 0.000352142614 | BQ6: =BQ5/$B$23 -> 0.0002752564336 | BR6: =BR5/$B$23 -> 0.0002136753279 | BS6: =BS5/$B$23 -> 0.0001647243275 | BT6: =BT5/$B$23 -> 0.0001261062587 | BU6: =BU5/$B$23 -> 9.586955628e-05 | BV6: =BV5/$B$23 -> 7.23735965e-05 | BW6: =BW5/$B$23 -> 5.425323548e-05 | BX6: =BX5/$B$23 -> 4.038390834e-05 | BY6: =BY5/$B$23 -> 2.984831912e-05 | BZ6: =BZ5/$B$23 -> 2.190545458e-05 | CA6: =CA5/$B$23 -> 1.596239106e-05 | CB6: =CB5/$B$23 -> 1.15491416e-05 | CC6: =CC5/$B$23 -> 8.2966104e-06 | CD6: =CD5/$B$23 -> 5.917583501e-06 | CE6: =CE5/$B$23 -> 4.190584358e-06 | CF6: =CF5/$B$23 -> 2.946356908e-06 | CG6: =CG5/$B$23 -> 2.05670048e-06 | CH6: =CH5/$B$23 -> 1.425365648e-06 | CI6: =CI5/$B$23 -> 9.807220286e-07 | CJ6: =CJ5/$B$23 -> 6.699232779e-07 | CK6: =CK5/$B$23 -> 4.543170267e-07 | CL6: =CL5/$B$23 -> 3.058745075e-07 | CM6: =CM5/$B$23 -> 2.044436336e-07 | CN6: =CN5/$B$23 -> 1.356581332e-07 | CO6: =CO5/$B$23 -> 8.93626612e-08 | CP6: =CP5/$B$23 -> 5.843870753e-08 | CQ6: =CQ5/$B$23 -> 3.793811602e-08 | CR6: =CR5/$B$23 -> 2.444995785e-08 | CS6: =CS5/$B$23 -> 1.56424348e-08 | CT6: =CT5/$B$23 -> 9.934620904e-09 | CU6: =CU5/$B$23 -> 6.263482992e-09 | CV6: =CV5/$B$23 -> 3.92008274e-09 | CW6: =CW5/$B$23 -> 2.435490721e-09 | CX6: =CX5/$B$23 -> 1.502058804e-09
A7: Actual Age-Crime Curve | D7: 0 | E7: 7.4518e-06 | F7: 1.8791e-06 | G7: 6.1955e-06 | H7: 1.285e-05 | I7: 3.27482e-05 | J7: 7.69873e-05 | K7: 0.0002077545 | L7: 0.0004973764 | M7: 0.0009526482 | N7: 0.0022350727 | O7: 0.0052878982 | P7: 0.0129382027 | Q7: 0.0250714636 | R7: 0.03621905 | S7: 0.04411037 | T7: 0.0483699764 | U7: 0.05036142 | V7: 0.0512811427 | W7: 0.04613622 | X7: 0.0401511155 | Y7: 0.0363081636 | Z7: 0.0327586382 | AA7: 0.0304513809 | AB7: 0.0285022482 | AC7: 0.0268880855 | AD7: 0.0256400327 | AE7: 0.02452753 | AF7: 0.0237893709 | AG7: 0.0230254018 | AH7: 0.0228980055 | AI7: 0.0227202482 | AJ7: 0.0232508864 | AK7: 0.0233308873 | AL7: 0.0231467927 | AM7: 0.0233021236 | AN7: 0.0225842336 | AO7: 0.0220289164 | AP7: 0.0211484409 | AQ7: 0.0202077218 | AR7: 0.0189390009 | AS7: 0.0175283636 | AT7: 0.0159521764 | AU7: 0.0143161255 | AV7: 0.0125749373 | AW7: 0.01130114 | AX7: 0.0096276736 | AY7: 0.0082402373 | AZ7: 0.00714967 | BA7: 0.0060086773 | BB7: 0.0053088691 | BC7: 0.0043952882 | BD7: 0.0037772736 | BE7: 0.0032019264 | BF7: 0.00267423 | BG7: 0.0022738809 | BH7: 0.0019594009 | BI7: 0.0016581355 | BJ7: 0.0014350873 | BK7: 0.0013050645 | BL7: 0.00105718 | BM7: 0.0009120845 | BN7: 0.0007578873 | BO7: 0.00071165 | BP7: 0.0005867091 | BQ7: 0.0005544609 | BR7: 0.0004675673 | BS7: 0.0004048564 | BT7: 0.0003551464 | BU7: 0.0003300327 | BV7: 0.0003062727 | BW7: 0.0002763936 | BX7: 0.00024794 | BY7: 0.0002014645 | BZ7: 0.0001977891 | CA7: 0.0001829536 | CB7: 0.0001463682 | CC7: 0.0001217564 | CD7: 0.0001290891 | CE7: 0.0001094164 | CF7: 0.0001052582 | CG7: 7.65382e-05 | CH7: 5.51545e-05 | CI7: 6.305e-05 | CJ7: 4.55727e-05 | CK7: 3.06891e-05 | CL7: 1.98118e-05 | CM7: 2.278e-05 | CN7: 1.20345e-05 | CO7: 9.1145e-06 | CP7: 7.3236e-06 | CQ7: 5.36e-06 | CR7: 5.4164e-06 | CS7: 9.645e-07 | CT7: 5.8618e-06 | CU7: 1.35045e-05 | CV7: 1.25927e-05 | CW7: 1.29918e-05 | CX7: 7.3891e-06
A8: Sum Squared Deviations (Mean) | D8: =D7*D7 -> 0 | E8: =E7*E7 -> 5.552932324e-11 | F8: 3.53101681e-12 | G8: 3.838422025e-11 | H8: 1.651225e-10 | I8: 1.072444603e-09 | J8: 5.927044361e-09 | K8: 4.316193227e-08 | L8: 2.473832833e-07 | M8: 9.07538593e-07 | N8: 4.995549974e-06 | O8: 2.796186737e-05 | P8: 0.0001673970891 | Q8: 0.000628578287 | R8: 0.001311819583 | S8: 0.001945724742 | T8: 0.002339654617 | U8: 0.002536272624 | V8: 0.002629755597 | W8: 0.002128550796 | X8: 0.001612112076 | Y8: 0.001318282744 | Z8: 0.001073128377 | AA8: 0.0009272865987 | AB8: 0.0008123781525 | AC8: 0.0007229691419 | AD8: 0.0006574112769 | AE8: 0.0006015997279 | AF8: 0.0005659341678 | AG8: 0.0005301691281 | AH8: 0.0005243186559 | AI8: 0.0005162096783 | AJ8: 0.0005406037184 | AK8: 0.0005443303022 | AL8: 0.0005357740123 | AM8: 0.0005429889643 | AN8: 0.0005100476073 | AO8: 0.0004852731578 | AP8: 0.0004472565525 | AQ8: 0.0004083520203 | AR8: 0.0003586857551 | AS8: 0.0003072435305 | AT8: 0.0002544719319 | AU8: 0.0002049514493 | AV8: 0.0001581290481 | AW8: 0.0001277157653 | AX8: 9.269209895e-05 | AY8: 6.790151076e-05 | AZ8: 5.111778111e-05 | BA8: 3.61042029e-05 | BB8: 2.818409112e-05 | BC8: 1.931855836e-05 | BD8: 1.426779585e-05 | BE8: 1.025233267e-05 | BF8: 7.151506093e-06 | BG8: 5.170534347e-06 | BH8: 3.839251887e-06 | BI8: 2.749413336e-06 | BJ8: 2.059475559e-06 | BK8: 1.703193349e-06 | BL8: 1.117629552e-06 | BM8: 8.318981351e-07 | BN8: 5.743931595e-07 | BO8: 5.064457225e-07 | BP8: 3.44227568e-07 | BQ8: =BQ7*BQ7 -> 3.074268896e-07 | BR8: 2.1861918e-07 | BS8: 1.639087046e-07 | BT8: 1.261289654e-07 | BU8: 1.089215831e-07 | BV8: 9.380296677e-08 | BW8: 7.639342212e-08 | BX8: 6.14742436e-08 | BY8: 4.058794476e-08 | BZ8: 3.912052808e-08 | CA8: 3.347201975e-08 | CB8: 2.142364997e-08 | CC8: 1.482462094e-08 | CD8: 1.666399574e-08 | CE8: 1.197194859e-08 | CF8: 1.107928867e-08 | CG8: 5.858096059e-09 | CH8: 3.04201887e-09 | CI8: 3.9753025e-09 | CJ8: 2.076870985e-09 | CK8: 9.418208588e-10 | CL8: 3.925074192e-10 | CM8: 5.189284e-10 | CN8: 1.448291903e-10 | CO8: 8.307411025e-11 | CP8: 5.363511696e-11 | CQ8: 2.87296e-11 | CR8: 2.933738896e-11 | CS8: 9.3026025e-13 | CT8: 3.436069924e-11 | CU8: 1.823715202e-10 | CV8: 1.585760933e-10 | CW8: 1.687868672e-10 | CX8: 5.459879881e-11
A9: Deviation | D9: =D6-D7 -> 1.551870093e-14 | E9: =E6-E7 -> -7.451799245e-06 | F9: -1.879072663e-06 | G9: -6.194763738e-06 | H9: -1.283522415e-05 | I9: -3.252688482e-05 | J9: -7.450810701e-05 | K9: -0.0001869267783 | L9: -0.000365668651 | M9: -0.0003225207436 | N9: 6.211610199e-05 | O9: 0.001159108792 | P9: 0.001198555947 | Q9: -0.0003260412205 | R9: -0.000576655089 | S9: -0.0001340326998 | T9: 0.0003517095949 | U9: 0.0003716930211 | V9: 8.653906273e-05 | W9: 1.872643466e-06 | X9: 3.213136807e-06 | Y9: 1.152358572e-06 | Z9: -5.53188037e-08 | AA9: 1.572281865e-07 | AB9: -3.931204307e-08 | AC9: 1.623075627e-07 | AD9: -2.964744405e-07 | AE9: 2.476681901e-07 | AF9: 4.243705159e-07 | AG9: 4.377472962e-07 | AH9: 5.117158889e-07 | AI9: 2.062578526e-07 | AJ9: 1.337456376e-06 | AK9: 9.51766544e-07 | AL9: 1.376708283e-06 | AM9: 1.131333053e-06 | AN9: 3.179098622e-08 | AO9: -6.18697457e-08 | AP9: 5.091954373e-07 | AQ9: 6.447375679e-07 | AR9: 6.45810052e-08 | AS9: 6.157617266e-06 | AT9: 8.522536095e-07 | AU9: -1.757137633e-07 | AV9: 2.274705939e-06 | AW9: 8.432735523e-07 | AX9: -0.0001400382728 | AY9: 0.0001010678185 | AZ9: 0.0001395743699 | BA9: 0.0003222994898 | BB9: 0.0001558488689 | BC9: 0.0002922465023 | BD9: 0.0002182483315 | BE9: 0.000182062847 | BF9: 0.0001734193129 | BG9: 0.0001069204254 | BH9: 1.810272695e-05 | BI9: -2.640472467e-05 | BJ9: -9.757567372e-05 | BK9: -0.0002160182474 | BL9: -0.0001763792865 | BM9: -0.000204504744 | BN9: -0.0001933088676 | BO9: -0.000264235671 | BP9: -0.000234566486 | BQ9: =BQ6-BQ7 -> -0.0002792044664 | BR9: -0.0002538919721 | BS9: -0.0002401320725 | BT9: -0.0002290401413 | BU9: -0.0002341631437 | BV9: -0.0002338991035 | BW9: -0.0002221403645 | BX9: -0.0002075560917 | BY9: -0.0001716161809 | BZ9: -0.0001758836454 | CA9: -0.0001669912089 | CB9: -0.0001348190584 | CC9: -0.0001134597896 | CD9: -0.0001231715165 | CE9: -0.0001052258156 | CF9: -0.0001023118431 | CG9: -7.448149952e-05 | CH9: -5.372913435e-05 | CI9: -6.206927797e-05 | CJ9: -4.490277672e-05 | CK9: -3.023478297e-05 | CL9: -1.950592549e-05 | CM9: -2.257555637e-05 | CN9: -1.189884187e-05 | CO9: -9.025137339e-06 | CP9: -7.265161292e-06 | CQ9: -5.322061884e-06 | CR9: -5.391950042e-06 | CS9: -9.488575652e-07 | CT9: -5.851865379e-06 | CU9: -1.349823652e-05 | CV9: -1.258877992e-05 | CW9: -1.298936451e-05 | CX9: -7.387597941e-06
A10: Squared Deviations | D10: =D9*D9 -> 2.408300787e-28 | E10: =E9*E9 -> 5.552931198e-11 | F10: 3.530914072e-12 | G10: 3.837509777e-11 | H10: 1.647429789e-10 | I10: 1.057998236e-09 | J10: 5.55145801e-09 | K10: 3.494162043e-08 | L10: 1.337135623e-07 | M10: 1.0401963e-07 | N10: 3.858410126e-09 | O10: 1.343533191e-06 | P10: 1.436536358e-06 | Q10: 1.063028775e-07 | R10: 3.325310916e-07 | S10: 1.796476461e-08 | T10: 1.236996391e-07 | U10: 1.381557019e-07 | V10: 7.489009378e-09 | W10: 3.50679355e-12 | X10: 1.032424814e-11 | Y10: 1.327930278e-12 | Z10: 3.060170043e-15 | AA10: 2.472070263e-14 | AB10: 1.545436731e-15 | AC10: 2.63437449e-14 | AD10: 8.789709389e-14 | AE10: 6.133953239e-14 | AF10: 1.800903347e-13 | AG10: 1.916226953e-13 | AH10: 2.61853151e-13 | AI10: 4.254230176e-14 | AJ10: 1.788789556e-12 | AK10: 9.058595543e-13 | AL10: 1.895325696e-12 | AM10: 1.279914477e-12 | AN10: 1.010666805e-15 | AO10: 3.827865433e-15 | AP10: 2.592799933e-13 | AQ10: 4.156865315e-13 | AR10: 4.170706233e-15 | AS10: 3.79162504e-11 | AT10: 7.263362149e-13 | AU10: 3.087532663e-14 | AV10: 5.174287109e-12 | AW10: 7.11110284e-13 | AX10: 1.961071786e-08 | AY10: 1.021470394e-08 | AZ10: 1.948100472e-08 | BA10: 1.038769611e-07 | BB10: 2.428886994e-08 | BC10: 8.540801813e-08 | BD10: 4.76323342e-08 | BE10: 3.314688026e-08 | BF10: 3.007425808e-08 | BG10: 1.143197736e-08 | BH10: 3.277087231e-10 | BI10: 6.972094849e-10 | BJ10: 9.521012103e-09 | BK10: 4.66638832e-08 | BL10: 3.11096527e-08 | BM10: 4.182219032e-08 | BN10: 3.736831828e-08 | BO10: 6.982048981e-08 | BP10: 5.502143635e-08 | BQ10: =BQ9*BQ9 -> 7.795513406e-08 | BR10: 6.44611335e-08 | BS10: 5.766341223e-08 | BT10: 5.245938633e-08 | BU10: 5.483237788e-08 | BV10: 5.470879062e-08 | BW10: 4.934634155e-08 | BX10: 4.307953119e-08 | BY10: 2.945211354e-08 | BZ10: 3.093505673e-08 | CA10: 2.788606386e-08 | CB10: 1.817617851e-08 | CC10: 1.287312386e-08 | CD10: 1.517122248e-08 | CE10: 1.107247228e-08 | CF10: 1.046771324e-08 | CG10: 5.547493771e-09 | CH10: 2.886819878e-09 | CI10: 3.852595268e-09 | CJ10: 2.016259357e-09 | CK10: 9.141421014e-10 | CL10: 3.804811293e-10 | CM10: 5.096557453e-10 | CN10: 1.415824378e-10 | CO10: 8.145310398e-11 | CP10: 5.278256861e-11 | CQ10: 2.83243427e-11 | CR10: 2.907312526e-11 | CS10: 9.00330679e-13 | CT10: 3.424432842e-11 | CU10: 1.822023891e-10 | CV10: 1.584773798e-10 | CW10: 1.687235904e-10 | CX10: 5.457660334e-11
A11: Sum Squared Deviations (Predicted)
A12: Standard Error 0-18
A14: Strength
A15: Mean | B15: 0
A16: S.D. | B16: 1
A17: Mean Chg | B17: 0
A19: Model | B19: 0-18 | C19: 19-45 | D19: 46-98 | E19: Total
A20: Intercept (a) | B20: -7.2 | D20: -0.9
A21: Slope (b) | B21: 0.55 | D21: 0.087
A23: Constant | B23: 19.4
A24: SS(T) | B24: =VAR(D7:V7)*B29 -> 0.007535423222 | C24: =VAR(W7:CW7)*C29 -> 0.003727812916 | D24: =VAR(AX7:CX7)*D29 -> 0.0002610692349 | E24: =VAR(D7:CX7)*E29 -> 0.01928278126
A25: SS(E) | B25: =SUM(D10:V10) -> 3.78961749e-06 | C25: =SUM(W10:AW10) -> 6.715271151e-11 | D25: =SUM(AX10:CX10) -> 1.305097466e-06 | E25: =SUM(D10:CX10) -> 5.094782109e-06
A26: S.E. | B26: =SQRT(B25/B29) -> 0.0004588401737 | C26: =SQRT(C25/C29) -> 1.607108147e-06 | D26: =SQRT(D25/D29) -> 0.0001584235721 | E26: =SQRT(E25/E29) -> 0.0002280078344
A27: R Squared | B27: =(B24-B25)/B24 -> 0.9994970929 | C27: =(C24-C25)/C24 -> 0.999999982 | D27: =(D24-D25)/D24 -> 0.9950009527 | E27: =(E24-E25)/E24 -> 0.9997357859
A29: df | B29: =18-0 -> 18 | C29: =45-19 -> 26 | D29: =98-46 -> 52 | E29: =98-0 -> 98
A30: Help: Adjust the slopes, intercepts and constants to
A31: obtain the best fit
A32: Note: 19-45 must be fit manually
D37: =SUM(F39:X39) -> 0.0002631279007 | F37: =0.0001*D1 -> 0 | G37: 0.0001 | H37: 0.0002 | I37: 0.0003 | J37: 0.0004 | K37: 0.0005 | L37: 0.0006 | M37: 0.0007 | N37: 0.0008 | O37: 0.0009 | P37: 0.001 | Q37: =(-0.0043+(O1-10)*0.0083) -> 0.004 | R37: 0.0123 | S37: 0.0206 | T37: 0.0289 | U37: 0.0372 | V37: 0.0455 | W37: 0.0538 | X37: 0.0621
D38: =SQRT(D37/18) -> 0.003823377657 | F38: =F37-D7 -> 0 | G38: 9.25482e-05 | H38: 0.0001981209 | I38: 0.0002938045 | J38: 0.00038715 | K38: 0.0004672518 | L38: 0.0005230127 | M38: 0.0004922455 | N38: 0.0003026236 | O38: -5.26482e-05 | P38: -0.0012350727 | Q38: -0.0012878982 | R38: -0.0006382027 | S38: -0.0044714636 | T38: -0.00731905 | U38: -0.00691037 | V38: -0.0028699764 | W38: 0.00343858 | X38: 0.0108188573
D39: =(B24-D37)/B24 -> 0.9650812047 | F39: =F38*F38 -> 0 | G39: =G38*G38 -> 8.565169323e-09 | H39: 3.925189102e-08 | I39: 8.632108422e-08 | J39: 1.498851225e-07 | K39: 2.183242446e-07 | L39: 2.735422844e-07 | M39: 2.423056323e-07 | N39: 9.158104328e-08 | O39: 2.771832963e-09 | P39: 1.525404574e-06 | Q39: 1.658681774e-06 | R39: 4.073026863e-07 | S39: 1.999398673e-05 | T39: 5.35684929e-05 | U39: 4.775321354e-05 | V39: 8.236764537e-06 | W39: 1.182383242e-05 | X39: 0.0001170476733
